bitfinex/quotes_ETHUSD_20250411
["timestamp","ask_amount","ask_price","bid_price","bid_amount"]
[1744382400342,6.43153,1554.9,1554.7,9.17]
[1744382400647,6.43169,1554.8,1554.7,9.17]
[1744382401120,6.43148,1554.9,1554.7,9.17]
[1744382401627,6.43008,1555.2,1554.9,6.43123]
[1744382401813,0.1627,1555.3,1554.9,7.67806]
[1744382402023,6.43099,1555.0,1554.7,16.84883]
[1744382402218,6.59234,1555.3,1554.7,1.2469]
[1744382402432,6.43218,1554.7,1554.5,10.93390055]
[1744382402629,6.43004,1555.2,1554.5,10.99822341]
[1744382402630,6.43135,1554.9,1554.5,10.99822341]
[1744382402812,12.86206,1555.0,1554.7,6.43197]
[1744382403013,6.43132,1554.9,1554.6,6.43252]
[1744382403208,6.43132,1554.9,1554.5,23.79956055]
[1744382403443,6.895832,1554.9,1554.3,10.4762]
[1744382403656,6.895832,1554.9,1554.3,9.17]
[1744382403862,6.43322,1554.5,1554.3,9.17]
[1744382404072,6.43322,1554.5,1554.1,1.3107]
[1744382404229,6.43322,1554.5,1554.1,0.05]
[1744382404230,6.43417,1554.2,1554.1,0.05]
[1744382405370,12.86792,1554.3,1554.1,0.05]
[1744382405554,6.43417,1554.2,1554.1,0.05]
[1744382409979,15.68687,1554.2,1554.1,1e-05]
[1744382410180,18.98462322,1554.2,1554.1,1e-05]
[1744382410387,20.01177802,1554.2,1554.1,1e-05]
[1744382411049,6.59936,1553.6,1553.5,0.19]
[1744382411256,6.43643,1553.7,1553.5,0.19]
[1744382411448,12.87197,1553.8,1553.5,1.4641]
[1744382411645,6.4364,1553.7,1553.5,1.4641]
[1744382412086,6.43591,1553.8,1553.5,1.4641]
[1744382412250,6.43591,1553.8,1553.5,7.90112]
[1744382412786,9.5973,1554.1,1553.5,1.4641]
[1744382412955,6.43643,1553.7,1553.5,1.4641]
[1744382413863,12.87291,1553.7,1553.5,1.4641]
[1744382414070,6.43643,1553.7,1553.5,1.4641]
[1744382414272,12.87289,1553.7,1553.5,1.4641]
[1744382414587,12.87289,1553.7,1553.5,0.19]
[1744382414588,6.43666,1553.6,1553.5,0.19]
[1744382415258,9.59936,1553.6,1553.5,0.19]
[1744382415869,6.43832,1553.2,1553.1,0.05]
[1744382417702,6.44174,1552.4,1552.1,0.05]
[1744382417905,6.44246,1552.2,1552.1,0.05]
[1744382418406,9.44246,1552.2,1552.1,1e-05]
[1744382418574,9.60599,1552.0,1551.9,0.394617]
[1744382418795,6.44306,1552.1,1551.9,0.394617]
[1744382418996,6.44329,1552.0,1551.9,0.394617]
[1744382419304,7.748195,1552.0,1551.9,0.394617]
[1744382419508,15.73758,1552.0,1551.9,0.394617]
[1744382419807,6.44454,1551.7,1551.6,5.63552497]
[1744382420218,10.07834964,1551.7,1551.6,5.63552497]
[1744382420384,9.99537,1551.5,1551.4,2.95e-06]
[1744382420719,11.802121,1551.5,1551.4,2.95e-06]
[1744382421023,6.44514,1551.6,1551.4,2.95e-06]
[1744382421318,6.44514,1551.6,1551.2,8.13646672]
[1744382421319,9.162,1551.7,1551.2,1.2714]
[1744382421519,6.60688,1551.8,1551.5,6.44522]
[1744382421688,6.44418,1551.8,1551.4,6.44552]
[1744382421889,12.88854,1551.8,1551.4,6.44552]
[1744382422218,12.88853,1551.8,1551.4,6.44552]
[1744382422521,12.88853,1551.8,1551.3,6.44605]
[1744382422522,7.733123,1551.8,1551.3,6.44605]
[1744382422817,7.733123,1551.8,1551.4,6.44574]
[1744382423021,6.44374,1551.9,1551.5,6.44526]
[1744382423381,6.44335,1552.0,1551.4,4.2763]
[1744382423582,22.21076,1552.1,1551.7,6.4443]
[1744382423820,6.44331,1552.0,1551.7,6.4443]
[1744382424134,6.44331,1552.0,1551.6,12.88976]
[1744382424285,6.44413,1551.8,1551.5,6.44527]
[1744382424484,6.44383,1551.9,1551.5,12.89044]
[1744382424685,6.44383,1551.9,1551.5,6.44517]
[1744382424989,14.17649,1551.9,1551.5,6.44517]
[1744382425318,6.44432,1551.8,1551.4,7.72194]
[1744382425521,12.8879,1551.9,1551.5,6.44524]
[1744382425719,6.44378,1551.9,1551.6,6.44494]
[1744382426219,6.44378,1551.9,1551.5,12.89048]
[1744382426421,12.88775,1551.9,1551.5,6.44524]
[1744382426784,6.44339,1552.0,1551.4,1.2763]
[1744382426986,9.09,1552.3,1551.5,15.6768219]
[1744382427220,9.4421,1552.3,1551.6,6.44496]
[1744382427524,6.44394,1551.9,1551.5,22.05766]
[1744382427723,6.44279,1552.2,1551.5,9.167]
[1744382427920,6.44303,1552.1,1551.7,6.4442]
[1744382428321,6.44342,1552.0,1551.7,6.4442]
[1744382428617,6.44288,1552.1,1551.5,15.6122]
[1744382428805,6.44411,1551.9,1551.5,22.05743]
[1744382429010,6.44293,1552.1,1551.7,6.44431]
[1744382429212,6.44293,1552.1,1551.8,6.44411]
[1744382429519,6.44293,1552.1,1551.7,12.88896]
[1744382429723,6.44293,1552.1,1551.8,6.44398]
[1744382429934,12.88606,1552.1,1551.7,14.177776]
[1744382430246,12.88677,1552.0,1551.7,6.44444]
[1744382430521,6.4433,1552.0,1551.7,12.88882]
[1744382430725,12.88688,1552.0,1551.6,12.8897]
[1744382430922,6.4433,1552.0,1551.7,6.44452]
[1744382431124,12.88679,1552.0,1551.7,6.44452]
[1744382431295,6.44384,1551.9,1551.6,6.44485]
[1744382431499,1.288679,1552.0,1551.5,15.61227]
[1744382431696,6.44371,1551.9,1551.4,1.2763]
[1744382431903,6.44473,1551.7,1551.3,12.89216]
[1744382432108,6.44372,1551.9,1551.5,6.44523]
[1744382432109,6.44424,1551.8,1551.5,6.44523]
[1744382432330,6.76384,1552.0,1551.6,6.44462]
[1744382432621,6.76265,1552.3,1551.7,6.44452]
[1744382432825,6.44215,1552.3,1552.0,6.44326]
[1744382433033,0.3205,1552.5,1552.2,6.44228]
[1744382433215,6.44138,1552.5,1552.1,12.88566]
[1744382433534,6.44196,1552.4,1552.1,6.44286]
[1744382433731,6.44098,1552.6,1552.3,6.4419]
[1744382433938,12.88195,1552.6,1552.3,6.4419]
[1744382434094,6.44096,1552.6,1552.3,12.88383]
[1744382434300,6.44051,1552.7,1552.4,6.44161]
[1744382434607,6.44051,1552.7,1552.4,12.88322]
[1744382434808,0.3205,1553.1,1552.6,6.4405]
[1744382435024,6.43886,1553.1,1552.5,6.44122]
[1744382435242,6.43842,1553.2,1552.8,7.7311]
[1744382435535,6.43888,1553.1,1552.8,1.2913]
[1744382435745,6.4384,1553.2,1552.8,7.73088]
[1744382435902,13.55282,1553.2,1552.8,7.73088]
[1744382436104,7.11429,1553.2,1552.9,6.43955]
[1744382436307,6.4384,1553.2,1552.9,6.43955]
[1744382436519,6.43799,1553.3,1552.9,12.87895]
[1744382436714,12.87608,1553.3,1552.9,6.4394]
[1744382437043,12.52757,1553.4,1553.0,6.43887]
[1744382437633,6.43795,1553.3,1553.0,6.43887]
[1744382437835,6.09,1553.4,1553.1,6.43847]
[1744382438040,7.374766,1553.4,1553.1,6.43847]
[1744382438208,7.374766,1553.4,1553.1,12.87707]
[1744382438409,7.374766,1553.4,1553.1,6.43847]
[1744382438812,6.43818,1553.3,1552.9,12.87894]
[1744382439006,7.374766,1553.4,1552.8,4.2913]
[1744382439211,7.374766,1553.4,1553.1,6.4386]
[1744382439212,6.09,1553.4,1553.1,6.4386]
[1744382439413,12.52756,1553.4,1553.1,6.4386]
[1744382439612,12.52756,1553.4,1553.1,12.8772]
[1744382439843,6.09,1553.4,1553.2,6.43824]
[1744382440152,18.96356,1553.6,1553.2,12.87641]
[1744382440308,18.96365,1553.6,1553.3,6.4379]
[1744382440509,20.860015,1553.6,1553.2,14.11857]
[1744382441036,6.43708,1553.5,1553.2,7.68037]
[1744382441545,6.43708,1553.5,1553.1,6.43863]
[1744382441546,7.986365,1553.6,1553.0,6.43914]
[1744382441750,12.87521,1553.4,1553.1,6.4387]
[1744382442132,12.87528,1553.4,1553.1,6.4387]
[1744382442337,6.43754,1553.4,1553.1,6.4387]
[1744382442511,6.43754,1553.4,1553.1,6.43858]
[1744382442843,6.43716,1553.5,1553.0,6.43915]
[1744382443011,6.43716,1553.5,1553.2,6.43808]
[1744382443206,12.87439,1553.5,1553.2,6.43808]
[1744382443643,6.43716,1553.5,1553.2,6.43808]
[1744382443850,12.52677,1553.6,1553.3,6.43783]
[1744382443851,6.09,1553.6,1553.3,6.43783]
[1744382444226,12.52667,1553.6,1553.3,12.87562]
[1744382444411,12.52667,1553.6,1553.4,6.43731]
[1744382444412,6.09,1553.6,1553.4,6.43731]
[1744382444612,6.43594,1553.8,1553.5,6.43693]
[1744382444936,12.87196,1553.8,1553.5,6.43693]
[1744382445123,6.43594,1553.8,1553.5,6.43693]
[1744382445423,12.87196,1553.8,1553.5,6.43693]
[1744382445611,6.43594,1553.8,1553.5,6.43693]
[1744382445812,12.87196,1553.8,1553.4,6.43739]
[1744382446741,12.87196,1553.8,1553.4,12.87474]
[1744382447036,12.52551,1553.9,1553.4,1.412754]
[1744382447256,6.09,1554.0,1553.8,6.43568]
[1744382447544,6.43471,1554.1,1553.8,6.43566]
[1744382447752,6.43396,1554.3,1553.9,12.87059]
[1744382448050,13.516336,1554.3,1553.9,6.43525]
[1744382448248,6.43422,1554.2,1553.8,6.43576]
[1744382448416,6.43471,1554.1,1553.8,6.43576]
[1744382448617,6.43426,1554.2,1553.7,4.74169267]
[1744382448852,6.43426,1554.2,1553.8,6.43572]
[1744382449015,12.86861,1554.2,1553.9,6.43529]
[1744382449210,6.43426,1554.2,1553.9,12.87055]
[1744382449415,6.43426,1554.2,1553.9,6.43526]
[1744382449646,12.86861,1554.2,1553.9,6.43526]
[1744382449845,12.86861,1554.2,1553.8,6.43578]
[1744382449846,14.2203106,1554.2,1553.8,6.43578]
[1744382450150,7.7859606,1554.2,1553.9,6.4353]
[1744382450356,6.43548,1553.9,1553.7,1.2526]
[1744382450515,6.75561,1554.0,1553.7,6.43612]
[1744382450858,6.43621,1553.8,1553.6,9.162]
[1744382451160,14.79835,1554.0,1553.6,12.87322]
[1744382451447,12.87102,1553.9,1553.6,6.43661]
[1744382451649,6.43561,1553.9,1553.6,6.43651]
[1744382451862,6.43561,1553.9,1553.6,12.87306]
[1744382451863,6.43559,1553.9,1553.6,12.87306]
[1744382452018,12.87119,1553.9,1553.5,6.43695]
[1744382452339,14.15849,1553.9,1553.6,6.43663]
[1744382452939,6.43501,1554.0,1553.7,6.43586]
[1744382453162,6.43524,1554.0,1553.6,6.43664]
[1744382453335,6.43524,1554.0,1553.7,12.87224]
[1744382453528,12.52467,1554.1,1553.5,6.43704]
[1744382453736,6.4353,1554.0,1553.6,6.43636]
[1744382454030,6.4353,1554.0,1553.7,6.43621]
[1744382454031,7.68783,1554.0,1553.7,6.43621]
[1744382454237,12.52471,1554.1,1553.8,6.4358]
[1744382454443,6.43429,1554.2,1553.9,6.43541]
[1744382454617,6.09,1554.3,1553.9,1.2707]
[1744382454817,6.09,1554.3,1554.0,12.87]
[1744382455542,6.09,1554.3,1554.0,6.43488]
[1744382455745,6.09,1554.3,1554.1,12.86884]
[1744382455940,12.52378,1554.3,1554.0,7.68615444]
[1744382456248,6.43459,1554.1,1553.5,8.24545065]
[1744382456445,12.87145,1553.9,1553.5,14.68240065]
[1744382456756,6.43583,1553.8,1553.5,7.75492]
[1744382457071,6.43583,1553.8,1553.5,14.19184]
[1744382457240,12.86935,1554.1,1553.5,2.737184]
[1744382457647,6.43501,1554.0,1553.7,6.43601]
[1744382458260,6.43501,1554.0,1553.7,12.87213]
[1744382458556,6.43501,1554.0,1553.6,6.4366]
[1744382458721,6.43501,1554.0,1553.7,6.43619]
[1744382458921,12.87021,1554.0,1553.7,6.43611]
[1744382459457,6.43501,1554.0,1553.7,12.87222]
[1744382460346,6.43469,1554.1,1553.8,12.87153]
[1744382460545,6.43469,1554.1,1553.7,1.29365791]
[1744382460546,12.52383,1554.3,1554.0,6.43487]
[1744382460727,6.09,1554.3,1554.1,6.43457]
[1744382461059,6.43383,1554.3,1554.0,6.43487]
[1744382461358,0.4514,1554.4,1554.0,6.43487]
[1744382461359,13.31839,1554.4,1554.1,6.43458]
[1744382461754,13.31839,1554.4,1554.0,12.86976]
[1744382462064,0.05,1554.4,1554.1,6.4342]
[1744382462288,0.05,1554.4,1554.3,6.43376]
[1744382462425,0.05,1554.4,1554.3,7.74156]
[1744382462762,0.05,1554.4,1554.3,20.43056]
[1744382462932,0.05,1555.4,1555.0,1.3078]
[1744382462933,6.42964,1555.3,1555.0,1.3078]
[1744382463626,6.43036,1555.2,1554.8,6.91442835]
[1744382463826,6.43019,1555.2,1554.8,14.25282]
[1744382464145,6.43019,1555.2,1554.8,14.25274]
[1744382464146,12.86049,1555.2,1554.8,14.25274]
[1744382464464,12.85959,1555.3,1555.0,6.43083]
[1744382464976,6.42969,1555.3,1554.9,12.86233]
[1744382465123,6.43049,1555.1,1554.8,1.3896]
[1744382466064,6.43128,1554.9,1554.8,1.3896]
[1744382466273,12.86293,1554.9,1554.5,7.70965]
[1744382466477,12.86293,1554.9,1554.5,8.18553501]
[1744382466478,6.43128,1554.9,1554.5,8.18553501]
[1744382466780,6.43154,1554.9,1554.5,8.18569501]
[1744382466963,12.86304,1554.9,1554.5,8.18558501]
[1744382467170,6.8319,1555.1,1554.5,3.51466951]
[1744382467373,12.86043,1555.2,1554.8,6.43143]
[1744382467542,1.692298,1555.3,1554.7,6.43203]
[1744382467877,1.692298,1555.3,1554.7,6.43194]
[1744382467878,6.43073,1555.1,1554.7,6.43194]
[1744382468080,6.43065,1555.1,1554.8,6.43164]
[1744382468280,0.05,1555.4,1555.0,6.43071]
[1744382468441,0.05,1555.4,1555.1,12.8606]
[1744382468646,0.05,1555.4,1555.2,6.43002]
[1744382468843,0.05,1555.4,1555.3,7.70882]
[1744382469056,0.05,1555.4,1555.3,1.2792]
[1744382469269,0.05,1555.4,1555.3,6.42962]
[1744382470980,6.47958,1555.4,1555.0,6.43079]
[1744382471175,7.077878,1555.3,1554.9,7.71352]
[1744382471484,7.077878,1555.3,1554.9,7.7134]
[1744382471671,6.43018,1555.2,1554.9,1.2823]
[1744382471981,6.4306,1555.1,1554.8,15.56765]
[1744382472176,6.43091,1555.0,1554.8,9.136]
[1744382472679,6.43051,1555.1,1554.8,6.43165]
[1744382472891,6.43049,1555.1,1554.8,6.43156]
[1744382473046,6.43112,1555.0,1554.7,6.43201]
[1744382473246,6.43112,1555.0,1554.6,12.86486]
[1744382473545,6.43112,1555.0,1554.7,6.43204]
[1744382473746,7.077718,1555.3,1554.9,6.43111]
[1744382473975,0.647958,1555.3,1555.0,6.43079]
[1744382474277,6.43055,1555.1,1554.7,7.77494]
[1744382474478,6.4301,1555.2,1554.9,6.4312]
[1744382474680,6.8312,1555.3,1554.8,6.43137]
[1744382474882,6.8312,1555.3,1554.7,7.77508]
[1744382475181,0.68312,1555.2,1554.6,9.43235]
[1744382475383,0.4014,1555.3,1554.4,23.38205]
[1744382475548,0.4014,1555.3,1554.5,6.43289]
[1744382475741,0.4014,1555.3,1554.5,12.86566]
[1744382475944,0.4014,1555.3,1554.5,6.43276]
[1744382476145,0.4014,1555.3,1554.4,16.94889]
[1744382476458,0.4014,1554.8,1554.4,23.38208]
[1744382476660,0.4014,1554.8,1554.4,7.81479]
[1744382477056,6.83322,1554.8,1554.4,6.43319]
[1744382477370,6.83322,1554.8,1554.3,6.43369]
[1744382477371,0.4014,1554.8,1554.0,10.5076]
[1744382477555,0.9514,1554.9,1554.1,6.43447]
[1744382477756,6.4329,1554.6,1554.1,12.86893]
[1744382477972,0.98343,1554.6,1554.3,6.43371]
[1744382478172,0.98343,1554.6,1554.2,6.43401]
[1744382478348,0.4014,1554.7,1554.3,6.43338]
[1744382478680,15.56346,1555.1,1554.6,6.43224]
[1744382478681,0.4014,1554.9,1554.6,6.43224]
[1744382478885,0.4014,1554.9,1554.7,6.43191]
[1744382479089,15.9649,1555.1,1554.6,6.43237]
[1744382479289,22.39575,1555.1,1554.6,6.43237]
[1744382479586,6.43101,1555.0,1554.6,6.43237]
[1744382479793,11.773975,1555.1,1554.4,4.3577]
[1744382480088,9.5344,1555.1,1554.4,4.3577]
[1744382480588,9.5344,1555.1,1554.4,4.84713532]
[1744382481686,9.5344,1555.1,1554.4,1.84713532]
[1744382481849,0.4014,1555.1,1554.4,1.84713532]
[1744382482987,0.4014,1555.1,1554.5,0.06432398]
[1744382483288,0.4014,1555.1,1554.4,1.84713532]
[1744382483655,0.4014,1555.1,1554.4,1.3577]
[1744382483996,0.4011,1554.9,1554.0,9.133]
[1744382484289,0.4011,1554.6,1553.7,1.3553]
[1744382484487,0.74121,1554.6,1553.7,1.3553]
[1744382484688,0.4011,1554.5,1553.7,1.3553]
[1744382484999,0.4011,1554.5,1553.8,0.55]
[1744382485194,0.4011,1554.5,1553.7,0.47091082]
[1744382485195,0.4011,1554.5,1553.9,1.2627]
[1744382487521,0.4011,1554.5,1553.9,4.2627]
[1744382487661,0.4011,1554.5,1554.0,4.76382873]
[1744382488002,0.4011,1554.7,1554.0,4.76382873]
[1744382489200,0.4011,1554.7,1553.9,1.2627]
[1744382489496,0.4011,1554.7,1554.2,5.68715873]
[1744382489701,9.5141,1555.0,1554.3,3.0]
[1744382490378,0.4011,1555.0,1554.3,3.0]
[1744382490573,0.4011,1555.0,1554.5,3.0]
[1744382491075,0.4011,1555.0,1554.5,0.73375587]
[1744382491286,0.4011,1555.0,1554.2,4.3296]
[1744382491811,0.4011,1554.6,1553.8,1.3296]
[1744382492012,0.4011,1554.6,1553.9,4.33755873]
[1744382493186,0.4011,1554.6,1553.8,4.3296]
[1744382493890,0.4011,1554.6,1553.8,1.3296]
[1744382494092,4.33755873,1554.1,1553.0,1.66484264]
[1744382494305,0.4011,1553.9,1553.1,4.40193872]
[1744382494616,0.4011,1553.9,1553.0,1.81904425]
[1744382494798,0.4011,1553.9,1553.0,4.81904425]
[1744382495017,0.4011,1553.8,1552.8,4.33755873]
[1744382495316,0.4011,1553.6,1552.6,1.3297]
[1744382495518,0.4011,1553.6,1552.7,4.33755873]
[1744382495820,0.55,1553.0,1552.5,8.13646672]
[1744382495980,3.4011,1553.1,1552.5,8.13646672]
[1744382495981,3.0,1552.9,1552.5,8.13646672]
[1744382496413,9.5161,1553.1,1552.5,8.13646672]
[1744382496593,10.46771,1553.1,1552.5,8.95011339]
[1744382496920,0.4011,1553.1,1552.5,10.29881339]
[1744382497419,0.4011,1553.1,1552.5,2.6540535]
[1744382497712,0.4011,1553.1,1552.4,3.0]
[1744382498078,0.4011,1553.1,1552.5,0.55]
[1744382498378,0.4011,1553.1,1552.5,1.03601735]
[1744382498716,0.4011,1553.4,1552.5,0.55]
[1744382499083,0.4011,1553.4,1552.6,1.2669]
[1744382499813,0.4011,1553.4,1553.1,6.43845]
[1744382500013,0.4011,1553.4,1553.1,12.87703]
[1744382500485,0.4011,1553.4,1553.2,6.43815]
[1744382500679,0.4011,1553.4,1553.1,7.726153]
[1744382500881,0.4011,1553.4,1553.1,6.43845]
[1744382501539,6.83865,1553.4,1553.0,6.43909]
[1744382501831,6.83865,1553.4,1553.0,12.87809]
[1744382502923,6.43849,1553.2,1552.8,6.43975]
[1744382503109,12.87713,1553.2,1552.8,6.43975]
[1744382503326,12.87701,1553.2,1552.8,12.8796]
[1744382503643,6.43849,1553.2,1552.8,6.43975]
[1744382503842,6.43849,1553.2,1552.7,9.4403]
[1744382503843,6.43911,1553.1,1552.7,9.44024]
[1744382503998,6.83865,1553.4,1553.0,6.43914]
[1744382503999,0.4011,1553.4,1553.0,6.43914]
[1744382504196,0.4011,1553.4,1552.9,6.4395]
[1744382504405,0.4011,1553.4,1553.0,6.43911]
[1744382504406,6.43819,1553.3,1553.0,6.43911]
[1744382504611,6.83867,1553.4,1553.0,12.87812]
[1744382504797,13.27639,1553.4,1553.0,6.43901]
[1744382504995,6.43678,1553.6,1553.0,8.34110228]
[1744382505207,12.87374,1553.6,1553.2,6.43832]
[1744382505412,12.87374,1553.6,1553.2,12.87651]
[1744382505736,13.27389,1553.7,1553.3,6.43774]
[1744382505935,6.83741,1553.7,1553.3,6.43774]
[1744382506430,13.27385,1553.7,1553.3,6.43774]
[1744382506631,6.83743,1553.7,1553.4,6.4373]
[1744382506830,0.4011,1554.0,1553.6,6.43666]
[1744382507030,6.43544,1553.9,1553.6,12.87316]
[1744382507421,13.27178,1554.0,1553.6,12.87316]
[1744382507920,6.43557,1553.9,1553.6,12.87302]
[1744382508130,13.27133,1554.0,1553.6,12.87302]
[1744382508526,9.43424,1554.2,1553.7,0.55]
[1744382508527,0.4011,1554.2,1553.7,0.55]
[1744382508833,6.83549,1554.2,1553.9,6.43538]
[1744382509037,0.4011,1554.2,1553.7,3.0]
[1744382509219,6.43554,1553.9,1553.7,3.0]
[1744382509394,12.87113,1553.9,1553.7,3.0]
[1744382509599,6.43653,1553.7,1553.4,6.43742]
[1744382509841,6.43653,1553.7,1553.4,12.87484]
[1744382510049,6.43505,1554.0,1553.5,0.55]
[1744382510050,6.43508,1554.0,1553.5,0.55]
[1744382510338,12.8703,1554.0,1553.7,6.4362]
[1744382510499,6.43508,1554.0,1553.7,6.4362]
[1744382510845,12.86939,1554.1,1553.7,12.87225]
[1744382511029,6.83535,1554.2,1553.7,1.287225]
[1744382511225,0.4011,1554.2,1553.9,6.43511]
[1744382511406,6.8354,1554.2,1553.9,6.43511]
[1744382511607,13.26981,1554.2,1553.8,12.87144]
[1744382511805,6.43461,1554.1,1553.8,12.87141]
[1744382512103,6.83457,1554.4,1554.1,6.43442]
[1744382512553,12.86604,1554.5,1554.2,6.43412]
[1744382512842,6.43339,1554.4,1554.1,6.43442]
[1744382513133,6.43339,1554.4,1554.1,6.43458]
[1744382513333,6.43339,1554.4,1554.1,12.86902]
[1744382513545,0.3608,1555.1,1554.5,6.43275]
[1744382513852,6.43189,1554.8,1554.5,6.43275]
[1744382514018,12.86378,1554.8,1554.4,12.9308651]
[1744382514220,12.86378,1554.8,1554.4,12.86654]
[1744382514529,6.43189,1554.8,1554.5,6.43288]
[1744382514727,7.718017,1554.8,1554.2,15.53301]
[1744382515051,6.43252,1554.6,1554.0,6.43476]
[1744382515198,6.43301,1554.5,1554.1,6.43446]
[1744382515404,6.43436,1554.2,1553.9,3.0]
[1744382515635,6.43463,1554.1,1553.7,8.977875]
[1744382515841,6.43463,1554.1,1553.7,7.723355]
[1744382516008,6.43428,1554.2,1553.8,7.2077855]
[1744382516208,6.79466,1554.3,1554.0,6.43497]
[1744382516445,6.79466,1554.3,1554.0,6.43498]
[1744382516738,13.22695,1554.5,1554.1,6.43436]
[1744382516901,6.43336,1554.4,1554.0,12.86978]
[1744382517102,12.86774,1554.3,1554.0,6.43489]
[1744382517340,6.43378,1554.3,1554.0,6.43489]
[1744382517640,12.86771,1554.3,1553.9,12.87072]
[1744382518445,6.43409,1554.3,1553.9,6.43529]
[1744382518645,6.43429,1554.2,1553.8,17.21416]
[1744382518942,6.43387,1554.3,1554.0,6.43499]
[1744382519438,6.43387,1554.3,1553.9,6.43526]
[1744382519941,0.3608,1554.5,1553.8,3.0]
[1744382520245,12.86779,1554.3,1553.9,6.43529]
[1744382520427,6.79385,1554.5,1554.1,6.43442]
[1744382520738,6.79385,1554.5,1554.1,6.43422]
[1744382520942,0.3608,1554.5,1554.0,6.43493]
[1744382521138,12.86789,1554.3,1554.0,6.43493]
[1744382521443,0.3608,1554.1,1553.6,3.0]
[1744382521612,18.95864,1554.2,1553.8,6.43549]
[1744382521806,4.61275574,1555.4,1554.2,6.43396]
[1744382521807,6.4508,1554.5,1554.2,6.43396]
[1744382522004,50.172,1555.1,1554.3,6.43362]
[1744382522005,6.4508,1554.7,1554.3,6.43362]
[1744382522324,6.43256,1554.6,1554.3,12.86726]
[1744382522529,12.52178,1554.8,1554.5,6.43275]
[1744382522717,6.43178,1554.8,1554.5,6.43275]
[1744382523121,13.22363,1554.9,1554.5,6.43275]
[1744382523305,6.43097,1555.0,1554.7,6.43197]
[1744382523505,12.86199,1555.0,1554.6,12.86484]
[1744382523831,6.43129,1554.9,1554.6,6.4324]
[1744382524113,6.43129,1554.9,1554.5,12.86566]
[1744382524319,12.86465,1554.7,1554.3,12.86734]
[1744382524619,13.22545,1554.7,1554.3,12.86734]
[1744382524819,13.22545,1554.7,1554.3,13.35376416]
[1744382525207,1.931279,1555.0,1554.6,10.77029588]
[1744382525208,6.43098,1555.0,1554.6,10.77029588]
[1744382525549,6.43098,1555.0,1554.6,6.4323]
[1744382525550,6.43131,1554.9,1554.6,6.4323]
[1744382526150,12.86291,1554.9,1554.5,7.73557]
[1744382526352,12.86273,1554.9,1554.5,12.8656]
[1744382526527,6.7917,1555.0,1554.6,6.43211]
[1744382526856,6.09,1555.1,1554.7,1.2747]
[1744382527143,6.79191,1555.0,1554.6,12.865]
[1744382527328,13.22297,1555.0,1554.6,12.865]
[1744382527526,6.79186,1555.0,1554.7,6.43204]
[1744382527735,13.22289,1555.0,1554.7,6.43204]
[1744382528048,6.79183,1555.0,1554.7,6.43204]
[1744382528345,0.3608,1555.0,1554.8,6.43168]
[1744382528717,6.79167,1555.0,1554.7,6.43198]
[1744382528933,8.722886,1555.0,1554.7,6.43198]
[1744382529937,6.43192,1554.8,1554.5,12.8656]
[1744382530246,8.723286,1555.0,1554.5,12.8656]
[1744382530247,6.43147,1554.9,1554.6,6.43245]
[1744382530445,2.292016,1555.0,1554.5,6.43288]
[1744382530754,12.86412,1554.8,1554.4,21.96432]
[1744382530914,6.43243,1554.7,1554.4,9.098]
[1744382531113,6.79335,1554.6,1554.2,57.96585]
[1744382531342,6.79335,1554.6,1554.0,10.77293588]
[1744382531343,6.43335,1554.4,1554.0,6.43496]
[1744382531657,6.43335,1554.4,1553.9,13.35561523]
[1744382531658,6.43393,1554.3,1553.9,13.35561523]
[1744382531854,15.643162,1554.8,1554.2,1.2663]
[1744382531855,6.4508,1554.8,1554.2,1.2663]
[1744382532023,0.3608,1555.0,1554.7,6.43175]
[1744382532406,0.3608,1555.0,1554.7,12.86359]
[1744382532610,6.09,1555.1,1554.7,2.657659]
[1744382532955,6.79057,1555.3,1554.8,6.43169]
[1744382533136,6.79057,1555.3,1555.0,6.43075]
[1744382533137,13.22038,1555.3,1555.0,6.43075]
[1744382533312,6.79057,1555.3,1555.0,6.43075]
[1744382533650,0.3608,1555.3,1555.0,6.43074]
[1744382533949,0.3608,1555.3,1554.9,6.43095]
[1744382534251,0.3608,1555.3,1555.1,6.43029]
[1744382534414,0.05,1555.4,1555.2,6.42967]
[1744382535017,6.42969,1555.3,1555.0,6.43076]
[1744382535229,12.90878,1555.4,1555.0,12.86151]
[1744382535423,0.05,1555.4,1555.1,12.86066]
[1744382535646,6.47936,1555.4,1555.1,6.43033]
[1744382535815,6.47936,1555.4,1555.0,6.43076]
[1744382536152,6.42973,1555.3,1555.0,6.43076]
[1744382536329,6.42973,1555.3,1554.8,9.58335482]
[1744382536330,6.47922,1555.4,1554.8,16.01500482]
[1744382536539,6.43017,1555.2,1554.8,16.01500482]
[1744382536854,6.431,1555.0,1554.6,6.43241]
[1744382537017,6.431,1555.0,1554.6,12.86482]
[1744382537349,6.09,1555.1,1554.5,1.2812]
[1744382537551,6.43203,1554.8,1554.4,6.4331]
[1744382537724,6.43223,1554.7,1554.4,6.4331]
[1744382538052,12.8646,1554.7,1554.3,14.19862]
[1744382538215,0.3608,1554.8,1554.4,6.43332]
[1744382538414,13.22451,1554.8,1554.5,6.43289]
[1744382538643,13.22451,1554.8,1554.4,6.43319]
[1744382538644,6.43213,1554.7,1554.4,6.43319]
[1744382539550,6.79259,1554.8,1554.3,1.419862]
[1744382539551,0.3608,1554.8,1554.3,1.419862]
[1744382539749,0.3608,1554.8,1554.1,9.094]